[Event "Titled Tuesday Blitz August 22 Early 2023"]
[White "Acosta Cruz, Oscar Yosimar"]
[Black "Aaditya Dhingra"]
[WhiteFideId "5111269"]
[BlackFideId "25678191"]
[WhiteElo "2257"]
[BlackElo "2642"]
[Result "1-0"]
[Round "2"]
[TimeControl "180+1"]
[Date "2023.08.22"]
[WhiteClock "0:00:29"]
[BlackClock "0:00:34"]
[Board "110"]

1. d4 {[%clk 0:03:00]}  g6 {[%clk 0:02:59]} 2. Nf3 {[%clk 0:02:53]}  Bg7 {[%clk 0:02:58]} 3. Nc3 {[%clk 0:02:44]}  d5 {[%clk 0:02:47]} 4. e4 {[%clk 0:02:30]}  dxe4 {[%clk 0:02:47]} 5. Nxe4 {[%clk 0:02:28]}  Nf6 {[%clk 0:02:47]} 6. Nxf6+ {[%clk 0:02:24]}  exf6 {[%clk 0:02:46]} 7. Bc4 {[%clk 0:02:21]}  O-O {[%clk 0:02:46]} 8. O-O {[%clk 0:02:18]}  Nd7 {[%clk 0:02:45]} 9. Re1 {[%clk 0:02:16]}  a5 {[%clk 0:02:43]} 10. a4 {[%clk 0:02:09]}  Nb6 {[%clk 0:02:41]} 11. Bb3 {[%clk 0:02:08]}  Nd5 {[%clk 0:02:40]} 12. h3 {[%clk 0:02:05]}  Be6 {[%clk 0:02:36]} 13. c3 {[%clk 0:01:56]}  c6 {[%clk 0:02:35]} 14. Bd2 {[%clk 0:01:53]}  Re8 {[%clk 0:02:33]} 15. c4 {[%clk 0:01:45]}  Nb4 {[%clk 0:02:31]} 16. Bc3 {[%clk 0:01:45]}  Qd7 {[%clk 0:02:00]} 17. Qd2 {[%clk 0:01:40]}  Bf5 {[%clk 0:01:48]} 18. Rxe8+ {[%clk 0:01:15]}  Rxe8 {[%clk 0:01:47]} 19. Bxb4 {[%clk 0:01:16]}  axb4 {[%clk 0:01:46]} 20. Qxb4 {[%clk 0:01:12]}  Be4 {[%clk 0:01:44]} 21. Rd1 {[%clk 0:01:12]}  Bxf3 {[%clk 0:01:43]} 22. gxf3 {[%clk 0:01:13]}  Qxh3 {[%clk 0:01:40]} 23. Re1 {[%clk 0:01:06]}  Rxe1+ {[%clk 0:01:14]} 24. Qxe1 {[%clk 0:01:07]}  Qxf3 {[%clk 0:01:12]} 25. Qe3 {[%clk 0:01:06]}  Qg4+ {[%clk 0:01:09]} 26. Kh2 {[%clk 0:00:59]}  Bh6 {[%clk 0:01:06]} 27. Qxh6 {[%clk 0:00:54]}  Qxd4 {[%clk 0:00:59]} 28. Qe3 {[%clk 0:00:50]}  Qxb2 {[%clk 0:00:58]} 29. c5 {[%clk 0:00:49]}  Kg7 {[%clk 0:00:56]} 30. Kg2 {[%clk 0:00:46]}  Qa3 {[%clk 0:00:53]} 31. Qc3 {[%clk 0:00:39]}  h5 {[%clk 0:00:49]} 32. f4 {[%clk 0:00:37]}  h4 {[%clk 0:00:47]} 33. Kh3 {[%clk 0:00:34]}  Kf8 {[%clk 0:00:34]} 34. Qc4 {[%clk 0:00:29]} 1-0


[Site "https://www.chess.com"]

[Event "Titled Tuesday Blitz August 22 Early 2023"]
[White "Itgelt, Khuyagtsogt"]
[Black "Liu, Leonardo"]
[WhiteFideId "4902912"]
[BlackFideId "30965780"]
[WhiteElo "2641"]
[BlackElo "2248"]
[Result "1-0"]
[Round "2"]
[TimeControl "180+1"]
[Date "2023.08.22"]
[WhiteClock "0:00:10"]
[BlackClock "0:00:29"]
[Board "111"]

1. d4 {[%clk 0:03:00]}  Nf6 {[%clk 0:02:57]} 2. c4 {[%clk 0:02:59]}  g6 {[%clk 0:02:58]} 3. g3 {[%clk 0:02:58]}  Bg7 {[%clk 0:02:56]} 4. Bg2 {[%clk 0:02:58]}  O-O {[%clk 0:02:57]} 5. Nc3 {[%clk 0:02:58]}  d6 {[%clk 0:02:58]} 6. Nf3 {[%clk 0:02:59]}  Nc6 {[%clk 0:02:57]} 7. O-O {[%clk 0:02:58]}  Bg4 {[%clk 0:02:57]} 8. d5 {[%clk 0:02:55]}  Na5 {[%clk 0:02:49]} 9. Nd2 {[%clk 0:02:45]}  c5 {[%clk 0:02:46]} 10. Qc2 {[%clk 0:02:37]}  a6 {[%clk 0:02:36]} 11. a3 {[%clk 0:02:20]}  Qc8 {[%clk 0:02:30]} 12. Na4 {[%clk 0:02:07]}  Qd8 {[%clk 0:01:45]} 13. h3 {[%clk 0:01:16]}  Bxe2 {[%clk 0:01:37]} 14. Re1 {[%clk 0:01:16]}  Bxc4 {[%clk 0:01:38]} 15. Nxc4 {[%clk 0:01:07]}  Nxc4 {[%clk 0:01:38]} 16. Nxc5 {[%clk 0:00:59]}  dxc5 {[%clk 0:01:10]} 17. Qxc4 {[%clk 0:00:59]}  Nd7 {[%clk 0:01:06]} 18. Bg5 {[%clk 0:00:51]}  b5 {[%clk 0:01:01]} 19. Qe2 {[%clk 0:00:47]}  f6 {[%clk 0:00:59]} 20. Qe6+ {[%clk 0:00:41]}  Kh8 {[%clk 0:00:52]} 21. Bf4 {[%clk 0:00:29]}  Ne5 {[%clk 0:00:50]} 22. Rad1 {[%clk 0:00:25]}  Qd6 {[%clk 0:00:48]} 23. Bxe5 {[%clk 0:00:18]}  fxe5 {[%clk 0:00:47]} 24. Be4 {[%clk 0:00:13]}  Rf6 {[%clk 0:00:46]} 25. Qg4 {[%clk 0:00:13]}  Raf8 {[%clk 0:00:46]} 26. Re2 {[%clk 0:00:09]}  R6f7 {[%clk 0:00:44]} 27. h4 {[%clk 0:00:09]}  Rf6 {[%clk 0:00:42]} 28. h5 {[%clk 0:00:10]}  gxh5 {[%clk 0:00:41]} 29. Qxh5 {[%clk 0:00:10]}  Rh6 {[%clk 0:00:42]} 30. Qg4 {[%clk 0:00:11]}  c4 {[%clk 0:00:36]} 31. Kg2 {[%clk 0:00:11]}  a5 {[%clk 0:00:28]} 32. Re3 {[%clk 0:00:06]}  Rhf6 {[%clk 0:00:26]} 33. Re2 {[%clk 0:00:04]}  Rh6 {[%clk 0:00:27]} 34. Re3 {[%clk 0:00:04]}  b4 {[%clk 0:00:27]} 35. axb4 {[%clk 0:00:04]}  axb4 {[%clk 0:00:28]} 36. Bb1 {[%clk 0:00:05]}  Qf6 {[%clk 0:00:29]} 37. Rf3 {[%clk 0:00:04]}  Qxf3+ {[%clk 0:00:29]} 38. Qxf3 {[%clk 0:00:05]}  Rxf3 {[%clk 0:00:29]} 39. Kxf3 {[%clk 0:00:05]}  Rf6+ {[%clk 0:00:30]} 40. Ke2 {[%clk 0:00:05]}  Bh6 {[%clk 0:00:28]} 41. f4 {[%clk 0:00:03]}  exf4 {[%clk 0:00:27]} 42. gxf4 {[%clk 0:00:04]}  Rxf4 {[%clk 0:00:27]} 43. d6 {[%clk 0:00:05]}  exd6 {[%clk 0:00:25]} 44. Rxd6 {[%clk 0:00:06]}  Rf8 {[%clk 0:00:25]} 45. Rxh6 {[%clk 0:00:05]}  Re8+ {[%clk 0:00:25]} 46. Kd1 {[%clk 0:00:06]}  Rd8+ {[%clk 0:00:25]} 47. Kc1 {[%clk 0:00:06]}  Rf8 {[%clk 0:00:21]} 48. Rxh7+ {[%clk 0:00:06]}  Kg8 {[%clk 0:00:21]} 49. Rh1 {[%clk 0:00:04]}  Rf2 {[%clk 0:00:18]} 50. Be4 {[%clk 0:00:04]}  Kf7 {[%clk 0:00:17]} 51. Bd5+ {[%clk 0:00:04]}  Ke7 {[%clk 0:00:18]} 52. Bxc4 {[%clk 0:00:05]}  Kd6 {[%clk 0:00:18]} 53. Rd1+ {[%clk 0:00:04]}  Kc5 {[%clk 0:00:19]} 54. Bb3 {[%clk 0:00:04]}  Rh2 {[%clk 0:00:18]} 55. Rd5+ {[%clk 0:00:05]}  Kb6 {[%clk 0:00:18]} 56. Rd2 {[%clk 0:00:06]}  Kc5 {[%clk 0:00:18]} 57. Kc2 {[%clk 0:00:06]}  Rh3 {[%clk 0:00:18]} 58. Rd5+ {[%clk 0:00:07]}  Kb6 {[%clk 0:00:18]} 59. Rd3 {[%clk 0:00:07]}  Rh2+ {[%clk 0:00:18]} 60. Rd2 {[%clk 0:00:08]}  Rh3 {[%clk 0:00:19]} 61. Bc4 {[%clk 0:00:08]}  Kc5 {[%clk 0:00:18]} 62. b3 {[%clk 0:00:07]}  Rc3+ {[%clk 0:00:17]} 63. Kb2 {[%clk 0:00:08]}  Rh3 {[%clk 0:00:18]} 64. Rd5+ {[%clk 0:00:08]}  Kc6 {[%clk 0:00:18]} 65. Rb5 {[%clk 0:00:06]}  Rh2+ {[%clk 0:00:19]} 66. Kc1 {[%clk 0:00:06]}  Rh1+ {[%clk 0:00:20]} 67. Kd2 {[%clk 0:00:07]}  Rh2+ {[%clk 0:00:20]} 68. Ke1 {[%clk 0:00:07]}  Rh1+ {[%clk 0:00:21]} 69. Kf2 {[%clk 0:00:07]}  Rh2+ {[%clk 0:00:21]} 70. Kg3 {[%clk 0:00:07]}  Rc2 {[%clk 0:00:20]} 71. Rxb4 {[%clk 0:00:08]}  Rc3+ {[%clk 0:00:21]} 72. Kf4 {[%clk 0:00:07]}  Kc5 {[%clk 0:00:22]} 73. Rb5+ {[%clk 0:00:08]}  Kc6 {[%clk 0:00:23]} 74. Ke4 {[%clk 0:00:07]}  Rc1 {[%clk 0:00:23]} 75. Re5 {[%clk 0:00:05]}  Re1+ {[%clk 0:00:20]} 76. Kf5 {[%clk 0:00:06]}  Rf1+ {[%clk 0:00:20]} 77. Ke6 {[%clk 0:00:06]}  Rd1 {[%clk 0:00:20]} 78. Re4 {[%clk 0:00:06]}  Kc5 {[%clk 0:00:20]} 79. Re5+ {[%clk 0:00:06]}  Kb4 {[%clk 0:00:21]} 80. Rb5+ {[%clk 0:00:05]}  Kc3 {[%clk 0:00:22]} 81. Rd5 {[%clk 0:00:05]}  Re1+ {[%clk 0:00:22]} 82. Kd6 {[%clk 0:00:06]}  Kb4 {[%clk 0:00:22]} 83. Kc6 {[%clk 0:00:06]}  Kc3 {[%clk 0:00:23]} 84. Kb5 {[%clk 0:00:05]}  Re8 {[%clk 0:00:22]} 85. Rd3+ {[%clk 0:00:06]}  Kb2 {[%clk 0:00:22]} 86. b4 {[%clk 0:00:05]}  Rb8+ {[%clk 0:00:22]} 87. Kc5 {[%clk 0:00:06]}  Rc8+ {[%clk 0:00:23]} 88. Kd4 {[%clk 0:00:06]}  Rd8+ {[%clk 0:00:23]} 89. Bd5 {[%clk 0:00:07]}  Rb8 {[%clk 0:00:22]} 90. Kc5 {[%clk 0:00:08]}  Rc8+ {[%clk 0:00:23]} 91. Bc6 {[%clk 0:00:08]}  Rh8 {[%clk 0:00:21]} 92. b5 {[%clk 0:00:08]}  Rh5+ {[%clk 0:00:22]} 93. Rd5 {[%clk 0:00:09]}  Rh6 {[%clk 0:00:22]} 94. b6 {[%clk 0:00:09]}  Rh8 {[%clk 0:00:22]} 95. b7 {[%clk 0:00:10]}  Rb8 {[%clk 0:00:22]} 96. Kb6 {[%clk 0:00:10]}  Rxb7+ {[%clk 0:00:23]} 97. Kxb7 {[%clk 0:00:10]}  Ka3 {[%clk 0:00:24]} 98. Kb6 {[%clk 0:00:11]}  Kb2 {[%clk 0:00:24]} 99. Rd3 {[%clk 0:00:10]}  Ka1 {[%clk 0:00:25]} 100. Rf3 {[%clk 0:00:11]}  Kb2 {[%clk 0:00:26]} 101. Kc5 {[%clk 0:00:12]}  Ka2 {[%clk 0:00:26]} 102. Kc4 {[%clk 0:00:13]}  Kb2 {[%clk 0:00:27]} 103. Rf2+ {[%clk 0:00:11]}  Ka1 {[%clk 0:00:27]} 104. Bd5 {[%clk 0:00:11]}  Kb1 {[%clk 0:00:28]} 105. Kc3 {[%clk 0:00:10]}  Ka1 {[%clk 0:00:29]} 106. Rf1# {[%clk 0:00:10]} 1-0


[Site "https://www.chess.com"]

[Event "Titled Tuesday Blitz August 22 Early 2023"]
[White "BeautiFullMindChess"]
[Black "Czopor, Maciej"]
[BlackFideId "21805431"]
[WhiteElo "2240"]
[BlackElo "2641"]
[Result "0-1"]
[Round "2"]
[TimeControl "180+1"]
[Date "2023.08.22"]
[WhiteClock "0:00:05"]
[BlackClock "0:00:30"]
[Board "112"]

1. f4 {[%clk 0:03:00]}  Nh6 {[%clk 0:02:59]} 2. Nf3 {[%clk 0:03:00]}  d5 {[%clk 0:02:59]} 3. b3 {[%clk 0:03:00]}  Nf5 {[%clk 0:02:56]} 4. Bb2 {[%clk 0:03:00]}  h5 {[%clk 0:02:56]} 5. e3 {[%clk 0:02:57]}  h4 {[%clk 0:02:53]} 6. Be2 {[%clk 0:02:54]}  c5 {[%clk 0:02:51]} 7. Bb5+ {[%clk 0:02:52]}  Bd7 {[%clk 0:02:51]} 8. Bxd7+ {[%clk 0:02:51]}  Nxd7 {[%clk 0:02:52]} 9. O-O {[%clk 0:02:51]}  e6 {[%clk 0:02:52]} 10. Qe2 {[%clk 0:02:51]}  Nf6 {[%clk 0:02:52]} 11. d3 {[%clk 0:02:50]}  d4 {[%clk 0:02:49]} 12. e4 {[%clk 0:02:34]}  Ne3 {[%clk 0:02:49]} 13. Rc1 {[%clk 0:02:30]}  h3 {[%clk 0:02:49]} 14. g3 {[%clk 0:02:27]}  Neg4 {[%clk 0:02:38]} 15. Nbd2 {[%clk 0:02:25]}  Be7 {[%clk 0:02:36]} 16. Nc4 {[%clk 0:02:14]}  b5 {[%clk 0:02:33]} 17. Nce5 {[%clk 0:02:14]}  Nxe5 {[%clk 0:02:23]} 18. Nxe5 {[%clk 0:02:03]}  Qb6 {[%clk 0:02:21]} 19. c3 {[%clk 0:01:46]}  dxc3 {[%clk 0:02:20]} 20. Bxc3 {[%clk 0:01:47]}  O-O {[%clk 0:02:20]} 21. Kh1 {[%clk 0:01:39]}  Rfd8 {[%clk 0:02:18]} 22. g4 {[%clk 0:01:37]}  Nd7 {[%clk 0:02:00]} 23. Nf3 {[%clk 0:01:00]}  Nb8 {[%clk 0:01:30]} 24. g5 {[%clk 0:00:52]}  Nc6 {[%clk 0:01:30]} 25. Rc2 {[%clk 0:00:35]}  Rd7 {[%clk 0:01:27]} 26. Rd1 {[%clk 0:00:27]}  Rad8 {[%clk 0:01:27]} 27. Rcd2 {[%clk 0:00:26]}  Bf8 {[%clk 0:01:17]} 28. Bb2 {[%clk 0:00:20]}  Bd6 {[%clk 0:01:08]} 29. Qe3 {[%clk 0:00:19]}  Qb8 {[%clk 0:01:03]} 30. e5 {[%clk 0:00:18]}  Bf8 {[%clk 0:01:03]} 31. g6 {[%clk 0:00:18]}  fxg6 {[%clk 0:01:02]} 32. Rg1 {[%clk 0:00:17]}  Qb7 {[%clk 0:00:59]} 33. Ng5 {[%clk 0:00:18]}  Nd4+ {[%clk 0:00:59]} 34. Ne4 {[%clk 0:00:17]}  Nf5 {[%clk 0:00:51]} 35. Qxh3 {[%clk 0:00:17]}  Rxd3 {[%clk 0:00:52]} 36. Rxd3 {[%clk 0:00:17]}  Qxe4+ {[%clk 0:00:53]} 37. Rf3 {[%clk 0:00:16]}  Nh4 {[%clk 0:00:49]} 38. Qxe6+ {[%clk 0:00:13]}  Kh7 {[%clk 0:00:47]} 39. Qh3 {[%clk 0:00:12]}  Qxf3+ {[%clk 0:00:47]} 40. Qxf3 {[%clk 0:00:12]}  Nxf3 {[%clk 0:00:48]} 41. Rg3 {[%clk 0:00:12]}  Rd1+ {[%clk 0:00:38]} 42. Kg2 {[%clk 0:00:11]}  Nh4+ {[%clk 0:00:39]} 43. Kh3 {[%clk 0:00:11]}  Nf5 {[%clk 0:00:39]} 44. Rf3 {[%clk 0:00:09]}  Kg8 {[%clk 0:00:34]} 45. Rf2 {[%clk 0:00:07]}  Kf7 {[%clk 0:00:34]} 46. Kg4 {[%clk 0:00:07]}  Ke6 {[%clk 0:00:31]} 47. Kf3 {[%clk 0:00:07]}  Be7 {[%clk 0:00:31]} 48. Ke4 {[%clk 0:00:06]}  c4 {[%clk 0:00:30]} 49. bxc4 {[%clk 0:00:06]}  bxc4 {[%clk 0:00:31]} 50. Bc3 {[%clk 0:00:05]}  Rd3 {[%clk 0:00:30]} 51. Rc2 {[%clk 0:00:05]}  Re3# {[%clk 0:00:30]} 0-1


[Site "https://www.chess.com"]

[Event "Titled Tuesday Blitz August 22 Early 2023"]
[White "Balint, Vilmos"]
[Black "Subelj, Jan"]
[WhiteFideId "718050"]
[BlackFideId "14618583"]
[WhiteElo "2223"]
[BlackElo "2636"]
[Result "0-1"]
[Round "2"]
[TimeControl "180+1"]
[Date "2023.08.22"]
[WhiteClock "0:02:04"]
[BlackClock "0:01:43"]
[Board "113"]

1. e4 {[%clk 0:02:59]}  Nc6 {[%clk 0:03:00]} 2. d4 {[%clk 0:02:56]}  d5 {[%clk 0:03:00]} 3. e5 {[%clk 0:02:53]}  Bf5 {[%clk 0:02:59]} 4. Bb5 {[%clk 0:02:52]}  e6 {[%clk 0:02:58]} 5. Ne2 {[%clk 0:02:52]}  Ne7 {[%clk 0:02:57]} 6. O-O {[%clk 0:02:51]}  a6 {[%clk 0:02:56]} 7. Bd3 {[%clk 0:02:51]}  h5 {[%clk 0:02:53]} 8. b3 {[%clk 0:02:50]}  h4 {[%clk 0:02:52]} 9. Ba3 {[%clk 0:02:46]}  Bxd3 {[%clk 0:02:50]} 10. Qxd3 {[%clk 0:02:46]}  Nf5 {[%clk 0:02:50]} 11. Bxf8 {[%clk 0:02:45]}  Rxf8 {[%clk 0:02:46]} 12. c4 {[%clk 0:02:43]}  dxc4 {[%clk 0:02:44]} 13. bxc4 {[%clk 0:02:43]}  Ncxd4 {[%clk 0:02:44]} 14. Nbc3 {[%clk 0:02:43]}  Nxe2+ {[%clk 0:02:40]} 15. Qxe2 {[%clk 0:02:43]}  Qd4 {[%clk 0:02:37]} 16. Rac1 {[%clk 0:02:29]}  O-O-O {[%clk 0:02:33]} 17. Rfd1 {[%clk 0:02:29]}  Qf4 {[%clk 0:02:30]} 18. g3 {[%clk 0:02:27]}  Rxd1+ {[%clk 0:02:27]} 19. Rxd1 {[%clk 0:02:26]}  hxg3 {[%clk 0:02:26]} 20. hxg3 {[%clk 0:02:26]}  Nxg3 {[%clk 0:02:25]} 21. fxg3 {[%clk 0:02:22]}  Qxg3+ {[%clk 0:02:26]} 22. Qg2 {[%clk 0:02:23]}  Qe3+ {[%clk 0:02:16]} 23. Kf1 {[%clk 0:02:23]}  Qxc3 {[%clk 0:02:16]} 24. Qxg7 {[%clk 0:02:22]}  Qxc4+ {[%clk 0:02:14]} 25. Ke1 {[%clk 0:02:22]}  Qe4+ {[%clk 0:02:13]} 26. Kf1 {[%clk 0:02:23]}  Qf4+ {[%clk 0:02:06]} 27. Ke1 {[%clk 0:02:23]}  Re8 {[%clk 0:02:05]} 28. Rd2 {[%clk 0:02:18]}  Kb8 {[%clk 0:02:00]} 29. Rf2 {[%clk 0:02:15]}  Qc1+ {[%clk 0:01:56]} 30. Ke2 {[%clk 0:02:16]}  Rd8 {[%clk 0:01:57]} 31. Kf3 {[%clk 0:02:10]}  Qh1+ {[%clk 0:01:54]} 32. Ke2 {[%clk 0:02:09]}  Qd1+ {[%clk 0:01:53]} 33. Ke3 {[%clk 0:02:08]}  Rd3+ {[%clk 0:01:44]} 34. Kf4 {[%clk 0:02:09]}  Qc1+ {[%clk 0:01:44]} 35. Ke4 {[%clk 0:02:04]}  Qc4# {[%clk 0:01:43]} 0-1


[Site "https://www.chess.com"]

[Event "Titled Tuesday Blitz August 22 Early 2023"]
[White "Buraczewski, Rafal"]
[Black "Zarubitski, Viachaslau"]
[WhiteFideId "1155245"]
[BlackFideId "13509373"]
[WhiteElo "2108"]
[BlackElo "2631"]
[Result "1/2-1/2"]
[Round "2"]
[TimeControl "180+1"]
[Date "2023.08.22"]
[WhiteClock "0:00:01"]
[BlackClock "0:00:01"]
[Board "120"]

1. d4 {[%clk 0:03:00]}  Nf6 {[%clk 0:02:59]} 2. Nf3 {[%clk 0:03:00]}  e6 {[%clk 0:02:58]} 3. c4 {[%clk 0:03:01]}  d5 {[%clk 0:02:57]} 4. Nc3 {[%clk 0:03:00]}  c6 {[%clk 0:02:57]} 5. Bg5 {[%clk 0:02:59]}  h6 {[%clk 0:02:55]} 6. Bh4 {[%clk 0:02:57]}  Be7 {[%clk 0:02:54]} 7. e3 {[%clk 0:02:56]}  Nbd7 {[%clk 0:02:53]} 8. Qc2 {[%clk 0:02:55]}  O-O {[%clk 0:02:52]} 9. Rd1 {[%clk 0:02:55]}  b6 {[%clk 0:02:51]} 10. cxd5 {[%clk 0:02:54]}  cxd5 {[%clk 0:02:42]} 11. Bd3 {[%clk 0:02:52]}  Bb7 {[%clk 0:02:42]} 12. O-O {[%clk 0:02:51]}  Rc8 {[%clk 0:02:35]} 13. Qe2 {[%clk 0:02:49]}  Ne4 {[%clk 0:02:28]} 14. Bxe7 {[%clk 0:02:46]}  Qxe7 {[%clk 0:02:16]} 15. Bxe4 {[%clk 0:02:35]}  dxe4 {[%clk 0:02:16]} 16. Nd2 {[%clk 0:02:36]}  Nf6 {[%clk 0:02:11]} 17. Qb5 {[%clk 0:02:31]}  Rc7 {[%clk 0:01:58]} 18. a3 {[%clk 0:02:06]}  Rfc8 {[%clk 0:01:54]} 19. Rc1 {[%clk 0:01:50]}  Bd5 {[%clk 0:01:48]} 20. Rfe1 {[%clk 0:01:41]}  Qd7 {[%clk 0:01:37]} 21. Qxd7 {[%clk 0:01:36]}  Nxd7 {[%clk 0:01:38]} 22. Rcd1 {[%clk 0:01:32]}  f5 {[%clk 0:01:36]} 23. f3 {[%clk 0:01:31]}  exf3 {[%clk 0:01:29]} 24. gxf3 {[%clk 0:01:32]}  Nf6 {[%clk 0:01:15]} 25. Rc1 {[%clk 0:00:58]}  Ba8 {[%clk 0:01:09]} 26. Kf2 {[%clk 0:00:30]}  Nd5 {[%clk 0:01:02]} 27. Ne2 {[%clk 0:00:29]}  Kf7 {[%clk 0:00:49]} 28. Rxc7+ {[%clk 0:00:28]}  Rxc7 {[%clk 0:00:49]} 29. Rc1 {[%clk 0:00:28]}  g5 {[%clk 0:00:33]} 30. Rxc7+ {[%clk 0:00:24]}  Nxc7 {[%clk 0:00:34]} 31. Nc4 {[%clk 0:00:24]}  Bd5 {[%clk 0:00:34]} 32. Ne5+ {[%clk 0:00:23]}  Ke7 {[%clk 0:00:33]} 33. Nc3 {[%clk 0:00:24]}  Bb7 {[%clk 0:00:32]} 34. e4 {[%clk 0:00:24]}  Ne8 {[%clk 0:00:28]} 35. Ke3 {[%clk 0:00:22]}  Nd6 {[%clk 0:00:28]} 36. b3 {[%clk 0:00:20]}  h5 {[%clk 0:00:23]} 37. Nc4 {[%clk 0:00:19]}  Nxc4+ {[%clk 0:00:13]} 38. bxc4 {[%clk 0:00:19]}  Ba6 {[%clk 0:00:13]} 39. c5 {[%clk 0:00:18]}  f4+ {[%clk 0:00:14]} 40. Kd2 {[%clk 0:00:16]}  bxc5 {[%clk 0:00:14]} 41. dxc5 {[%clk 0:00:16]}  Kd7 {[%clk 0:00:14]} 42. Na4 {[%clk 0:00:15]}  Kc6 {[%clk 0:00:14]} 43. Kc3 {[%clk 0:00:14]}  Bb5 {[%clk 0:00:15]} 44. Nb2 {[%clk 0:00:09]}  Kxc5 {[%clk 0:00:15]} 45. Nd1 {[%clk 0:00:08]}  Be2 {[%clk 0:00:15]} 46. Nf2 {[%clk 0:00:08]}  Bxf3 {[%clk 0:00:15]} 47. a4 {[%clk 0:00:07]}  Be2 {[%clk 0:00:13]} 48. e5 {[%clk 0:00:06]}  Kd5 {[%clk 0:00:13]} 49. Nh3 {[%clk 0:00:04]}  Kxe5 {[%clk 0:00:12]} 50. Nxg5 {[%clk 0:00:04]}  f3 {[%clk 0:00:12]} 51. Kd2 {[%clk 0:00:04]}  Kf4 {[%clk 0:00:11]} 52. Nxe6+ {[%clk 0:00:04]}  Kg4 {[%clk 0:00:10]} 53. Ke3 {[%clk 0:00:02]}  Kh3 {[%clk 0:00:08]} 54. Nf4+ {[%clk 0:00:03]}  Kxh2 {[%clk 0:00:08]} 55. Nxh5 {[%clk 0:00:03]}  Kg1 {[%clk 0:00:07]} 56. Ng3 {[%clk 0:00:03]}  Bd1 {[%clk 0:00:04]} 57. Ne4 {[%clk 0:00:03]}  Kg2 {[%clk 0:00:03]} 58. a5 {[%clk 0:00:03]}  Ba4 {[%clk 0:00:03]} 59. Nf2 {[%clk 0:00:03]}  Bc2 {[%clk 0:00:03]} 60. Ng4 {[%clk 0:00:03]}  Kg3 {[%clk 0:00:03]} 61. Nf2 {[%clk 0:00:03]}  Bf5 {[%clk 0:00:03]} 62. Nd1 {[%clk 0:00:02]}  Bg6 {[%clk 0:00:03]} 63. Nf2 {[%clk 0:00:03]}  Bc2 {[%clk 0:00:03]} 64. Nh1+ {[%clk 0:00:02]}  Kg2 {[%clk 0:00:03]} 65. Nf2 {[%clk 0:00:03]}  Ba4 {[%clk 0:00:02]} 66. Ng4 {[%clk 0:00:03]}  Bc6 {[%clk 0:00:02]} 67. Nf2 {[%clk 0:00:04]}  Kf1 {[%clk 0:00:02]} 68. Ng4 {[%clk 0:00:03]}  Ke1 {[%clk 0:00:02]} 69. Nf2 {[%clk 0:00:03]}  Bb7 {[%clk 0:00:03]} 70. Nd3+ {[%clk 0:00:03]}  Kd1 {[%clk 0:00:03]} 71. Ne5 {[%clk 0:00:03]}  Kc2 {[%clk 0:00:03]} 72. Nxf3 {[%clk 0:00:03]}  Kb3 {[%clk 0:00:03]} 73. Nd4+ {[%clk 0:00:02]}  Kb4 {[%clk 0:00:03]} 74. Kd2 {[%clk 0:00:03]}  Kxa5 {[%clk 0:00:03]} 75. Kc3 {[%clk 0:00:03]}  Bd5 {[%clk 0:00:04]} 76. Nb3+ {[%clk 0:00:03]}  Ka4 {[%clk 0:00:03]} 77. Nc5+ {[%clk 0:00:03]}  Kb5 {[%clk 0:00:03]} 78. Nb3 {[%clk 0:00:03]}  Ka4 {[%clk 0:00:03]} 79. Nc5+ {[%clk 0:00:03]}  Ka3 {[%clk 0:00:04]} 80. Na6 {[%clk 0:00:03]}  Bb7 {[%clk 0:00:03]} 81. Nc5 {[%clk 0:00:03]}  Bc8 {[%clk 0:00:03]} 82. Nd3 {[%clk 0:00:02]}  a5 {[%clk 0:00:03]} 83. Nc5 {[%clk 0:00:02]}  a4 {[%clk 0:00:01]} 84. Nxa4 {[%clk 0:00:01]} 1/2-1/2


[Site "https://www.chess.com"]

[Event "Titled Tuesday Blitz August 22 Early 2023"]
[White "elcala"]
[Black "Sharan, Rao"]
[BlackFideId "5073464"]
[WhiteElo "1701"]
[BlackElo "2627"]
[Result "0-1"]
[Round "2"]
[TimeControl "180+1"]
[Date "2023.08.22"]
[WhiteClock "0:00:00"]
[BlackClock "0:00:30"]
[Board "121"]

1. d4 {[%clk 0:03:00]}  Nf6 {[%clk 0:02:56]} 2. Nf3 {[%clk 0:03:01]}  d5 {[%clk 0:02:54]} 3. Bf4 {[%clk 0:03:00]}  Bf5 {[%clk 0:02:54]} 4. e3 {[%clk 0:02:58]}  e6 {[%clk 0:02:51]} 5. Bd3 {[%clk 0:02:53]}  Bg6 {[%clk 0:02:39]} 6. O-O {[%clk 0:02:50]}  Bd6 {[%clk 0:02:35]} 7. Ne5 {[%clk 0:02:47]}  Nbd7 {[%clk 0:02:31]} 8. Nd2 {[%clk 0:02:39]}  Nh5 {[%clk 0:02:19]} 9. Ndf3 {[%clk 0:02:27]}  Nxf4 {[%clk 0:02:18]} 10. exf4 {[%clk 0:02:28]}  Nf6 {[%clk 0:02:13]} 11. Qe2 {[%clk 0:01:42]}  Qe7 {[%clk 0:02:02]} 12. c3 {[%clk 0:01:40]}  Be4 {[%clk 0:01:56]} 13. Bxe4 {[%clk 0:01:35]}  Nxe4 {[%clk 0:01:54]} 14. Nd2 {[%clk 0:01:33]}  Nxd2 {[%clk 0:01:49]} 15. Qxd2 {[%clk 0:01:32]}  O-O {[%clk 0:01:43]} 16. g3 {[%clk 0:01:23]}  c5 {[%clk 0:01:42]} 17. Rac1 {[%clk 0:01:15]}  Rac8 {[%clk 0:01:42]} 18. Qe3 {[%clk 0:01:08]}  Rc7 {[%clk 0:01:38]} 19. a4 {[%clk 0:00:59]}  Rfc8 {[%clk 0:01:38]} 20. Kg2 {[%clk 0:00:47]}  Qe8 {[%clk 0:01:20]} 21. b3 {[%clk 0:00:24]}  b5 {[%clk 0:00:54]} 22. axb5 {[%clk 0:00:14]}  Qxb5 {[%clk 0:00:54]} 23. Rb1 {[%clk 0:00:14]}  cxd4 {[%clk 0:00:53]} 24. cxd4 {[%clk 0:00:12]}  Rc3 {[%clk 0:00:53]} 25. Qe1 {[%clk 0:00:04]}  h6 {[%clk 0:00:41]} 26. Qd1 {[%clk 0:00:03]}  Rc2 {[%clk 0:00:39]} 27. Re1 {[%clk 0:00:02]}  Ra2 {[%clk 0:00:31]} 28. Re3 {[%clk 0:00:00]}  Rcc2 {[%clk 0:00:30]} 0-1


[Site "https://www.chess.com"]

[Event "Titled Tuesday Blitz August 22 Early 2023"]
[White "Putnam, Liam"]
[Black "Buchenau, Frank"]
[WhiteFideId "30938279"]
[BlackFideId "4604350"]
[WhiteElo "2825"]
[BlackElo "2426"]
[Result "1-0"]
[Round "2"]
[TimeControl "180+1"]
[Date "2023.08.22"]
[WhiteClock "0:01:50"]
[BlackClock "0:00:11"]
[Board "125"]

1. d4 {[%clk 0:03:00]}  e6 {[%clk 0:02:59]} 2. c4 {[%clk 0:02:53]}  Nf6 {[%clk 0:02:59]} 3. Nf3 {[%clk 0:02:31]}  b6 {[%clk 0:02:58]} 4. g3 {[%clk 0:02:17]}  Bb7 {[%clk 0:02:58]} 5. Bg2 {[%clk 0:02:17]}  Be7 {[%clk 0:02:58]} 6. O-O {[%clk 0:02:18]}  O-O {[%clk 0:02:58]} 7. Nc3 {[%clk 0:02:18]}  Ne4 {[%clk 0:02:58]} 8. Qc2 {[%clk 0:02:19]}  Nxc3 {[%clk 0:02:58]} 9. Qxc3 {[%clk 0:02:20]}  f5 {[%clk 0:02:57]} 10. b4 {[%clk 0:02:18]}  Bf6 {[%clk 0:02:53]} 11. Bb2 {[%clk 0:02:17]}  c5 {[%clk 0:02:53]} 12. bxc5 {[%clk 0:02:17]}  bxc5 {[%clk 0:02:52]} 13. Rfd1 {[%clk 0:02:18]}  Be4 {[%clk 0:02:45]} 14. Qd2 {[%clk 0:02:13]}  Qb6 {[%clk 0:02:41]} 15. Ba3 {[%clk 0:02:07]}  d6 {[%clk 0:02:16]} 16. Rac1 {[%clk 0:02:05]}  Qa6 {[%clk 0:01:44]} 17. Qe3 {[%clk 0:02:01]}  cxd4 {[%clk 0:01:22]} 18. Nxd4 {[%clk 0:02:01]}  Bxd4 {[%clk 0:01:13]} 19. Rxd4 {[%clk 0:02:02]}  Bxg2 {[%clk 0:00:59]} 20. Kxg2 {[%clk 0:01:59]}  e5 {[%clk 0:00:34]} 21. Rxd6 {[%clk 0:01:57]}  Qb7+ {[%clk 0:00:33]} 22. Kg1 {[%clk 0:01:56]}  Nc6 {[%clk 0:00:26]} 23. Rcd1 {[%clk 0:01:55]}  Rf7 {[%clk 0:00:15]} 24. Qc5 {[%clk 0:01:52]}  Rc8 {[%clk 0:00:14]} 25. Rxc6 {[%clk 0:01:50]}  Qxc6 {[%clk 0:00:11]} 26. Qxc6 {[%clk 0:01:49]}  Rxc6 {[%clk 0:00:11]} 27. Rd8+ {[%clk 0:01:49]}  Rf8 {[%clk 0:00:11]} 28. Rxf8# {[%clk 0:01:50]} 1-0


[Site "https://www.chess.com"]